[Event "Early-Titled-Tuesday-Blitz-August-29-2023"]
[Site "Chess.com"]
[Date "2023.08.29"]
[Round "5"]
[White "ProfessorChess101"]
[Black "temiksmozg"]
[Result "0-1"]
[WhiteElo "2424"]
[BlackElo "2644"]
[TimeControl "180+1"]
[EndTime "8:57:17 PDT"]
[Termination "temiksmozg won by checkmate"]

1. e4 {[%clk 0:03:00.9]} 1... c5 {[%clk 0:02:59.7]} 2. Nf3 {[%clk 0:02:57.1]}
2... Nc6 {[%clk 0:02:56.7]} 3. Nc3 {[%clk 0:02:54.6]} 3... e5 {[%clk 0:02:53.1]}
4. Bc4 {[%clk 0:02:53]} 4... d6 {[%clk 0:02:52.5]} 5. d3 {[%clk 0:02:51.7]} 5...
Be7 {[%clk 0:02:52.6]} 6. Nd2 {[%clk 0:02:46.5]} 6... Nf6 {[%clk 0:02:49.9]} 7.
Nf1 {[%clk 0:02:46.1]} 7... Be6 {[%clk 0:02:47.2]} 8. Ng3 {[%clk 0:02:43.5]}
8... d5 {[%clk 0:02:37.4]} 9. exd5 {[%clk 0:02:40.8]} 9... Nxd5 {[%clk
0:02:38.3]} 10. Nxd5 {[%clk 0:02:35.8]} 10... Bxd5 {[%clk 0:02:39.2]} 11. Qg4
{[%clk 0:02:21.1]} 11... Bxc4 {[%clk 0:02:32.1]} 12. Qxc4 {[%clk 0:02:11.8]}
12... Qd4 {[%clk 0:02:27.7]} 13. Nf5 {[%clk 0:01:46.8]} 13... Qxc4 {[%clk
0:02:21.8]} 14. dxc4 {[%clk 0:01:47.7]} 14... g6 {[%clk 0:02:21.8]} 15. Ne3
{[%clk 0:01:40.8]} 15... O-O-O {[%clk 0:02:15.2]} 16. Nd5 {[%clk 0:01:36.3]}
16... Rd7 {[%clk 0:02:00.6]} 17. c3 {[%clk 0:01:30.9]} 17... e4 {[%clk 0:01:42]}
18. Bf4 {[%clk 0:01:18.6]} 18... Bd6 {[%clk 0:01:42]} 19. Bxd6 {[%clk
0:00:56.6]} 19... Rxd6 {[%clk 0:01:42.9]} 20. O-O-O {[%clk 0:00:55.4]} 20... Ne5
{[%clk 0:01:33.9]} 21. Kc2 {[%clk 0:00:34]} 21... Nxc4 {[%clk 0:01:02.5]} 22.
Rhe1 {[%clk 0:00:30.9]} 22... f5 {[%clk 0:00:57.6]} 23. b3 {[%clk 0:00:28]}
23... Na5 {[%clk 0:00:35.3]} 24. g4 {[%clk 0:00:17.4]} 24... Rhd8 {[%clk
0:00:31]} 25. Ne7+ {[%clk 0:00:12.5]} 25... Kd7 {[%clk 0:00:31.2]} 26. Rxd6+
{[%clk 0:00:07.1]} 26... Kxd6 {[%clk 0:00:31.5]} 27. Nd5 {[%clk 0:00:07.6]}
27... Ke5 {[%clk 0:00:24.6]} 28. c4 {[%clk 0:00:06.7]} 28... Nc6 {[%clk
0:00:20.2]} 29. Kc3 {[%clk 0:00:07.1]} 29... Nd4 {[%clk 0:00:20.1]} 30. f4+
{[%clk 0:00:04.7]} 30... Kd6 {[%clk 0:00:17.3]} 31. gxf5 {[%clk 0:00:04.4]}
31... gxf5 {[%clk 0:00:17.5]} 32. Rg1 {[%clk 0:00:04.5]} 32... Kc6 {[%clk
0:00:15.5]} 33. Rg7 {[%clk 0:00:04.2]} 33... Rd7 {[%clk 0:00:15]} 34. Ne7+
{[%clk 0:00:02.1]} 34... Kc7 {[%clk 0:00:11.4]} 35. Nd5+ {[%clk 0:00:02.4]}
35... Kd6 {[%clk 0:00:11.6]} 36. Rg8 {[%clk 0:00:02.7]} 36... b5 {[%clk
0:00:08.8]} 37. Rf8 {[%clk 0:00:02.8]} 37... b4+ {[%clk 0:00:08.9]} 38. Kd2
{[%clk 0:00:03.3]} 38... Kc6 {[%clk 0:00:08.3]} 39. Ke3 {[%clk 0:00:03.7]} 39...
Nc2+ {[%clk 0:00:07.3]} 40. Ke2 {[%clk 0:00:04]} 40... Nd4+ {[%clk 0:00:08.2]}
41. Ke3 {[%clk 0:00:04.4]} 41... Rg7 {[%clk 0:00:07.6]} 42. Rf6+ {[%clk
0:00:04]} 42... Kb7 {[%clk 0:00:07.5]} 43. Kf2 {[%clk 0:00:03.9]} 43... Rd7
{[%clk 0:00:05.6]} 44. Rf8 {[%clk 0:00:04.1]} 44... a5 {[%clk 0:00:06.1]} 45.
Ke3 {[%clk 0:00:03.5]} 45... a4 {[%clk 0:00:06.5]} 46. Kf2 {[%clk 0:00:04.1]}
46... axb3 {[%clk 0:00:06.6]} 47. axb3 {[%clk 0:00:05]} 47... Nxb3 {[%clk
0:00:07.4]} 48. Rxf5 {[%clk 0:00:05]} 48... Nd2 {[%clk 0:00:07.7]} 49. Ne3
{[%clk 0:00:03.3]} 49... b3 {[%clk 0:00:07.7]} 50. Rxc5 {[%clk 0:00:03.8]} 50...
Rd6 {[%clk 0:00:05.9]} 51. Nd5 {[%clk 0:00:02.8]} 51... Ka6 {[%clk 0:00:04.7]}
52. Rb5 {[%clk 0:00:03.2]} 52... Nxc4 {[%clk 0:00:04.2]} 53. Rxb3 {[%clk
0:00:03]} 53... Rxd5 {[%clk 0:00:04.4]} 54. Rb4 {[%clk 0:00:03.9]} 54... Nd6
{[%clk 0:00:03.7]} 55. Ke3 {[%clk 0:00:04.1]} 55... Rd3+ {[%clk 0:00:03.9]} 56.
Ke2 {[%clk 0:00:04.4]} 56... Rf3 {[%clk 0:00:04.8]} 57. Rd4 {[%clk 0:00:04.1]}
57... Nf5 {[%clk 0:00:04.2]} 58. Rxe4 {[%clk 0:00:04.3]} 58... Rh3 {[%clk
0:00:04.8]} 59. Re5 {[%clk 0:00:03.9]} 59... Nd4+ {[%clk 0:00:04.2]} 60. Kf2
{[%clk 0:00:02.4]} 60... Kb6 {[%clk 0:00:04.1]} 61. Rd5 {[%clk 0:00:02.2]} 61...
Nc6 {[%clk 0:00:03.3]} 62. Rd7 {[%clk 0:00:01.9]} 62... Rh6 {[%clk 0:00:02.8]}
63. Kg2 {[%clk 0:00:02.8]} 63... Nb8 {[%clk 0:00:02.3]} 64. Rg7 {[%clk
0:00:02.3]} 64... Kc6 {[%clk 0:00:02.7]} 65. Rg8 {[%clk 0:00:02.8]} 65... Nd7
{[%clk 0:00:03.2]} 66. Kg3 {[%clk 0:00:03.3]} 66... Kd6 {[%clk 0:00:03.7]} 67.
Ra8 {[%clk 0:00:03]} 67... Ke7 {[%clk 0:00:03.5]} 68. Ra7 {[%clk 0:00:03]} 68...
Rg6+ {[%clk 0:00:04]} 69. Kf3 {[%clk 0:00:03.6]} 69... Rb6 {[%clk 0:00:04]} 70.
h4 {[%clk 0:00:04]} 70... Ke6 {[%clk 0:00:03.7]} 71. Ra5 {[%clk 0:00:02.3]}
71... Nf6 {[%clk 0:00:04]} 72. Re5+ {[%clk 0:00:02.4]} 72... Kf7 {[%clk
0:00:04.5]} 73. h5 {[%clk 0:00:02.6]} 73... Rb3+ {[%clk 0:00:04.9]} 74. Kg2
{[%clk 0:00:03.2]} 74... Kg7 {[%clk 0:00:04.5]} 75. Rg5+ {[%clk 0:00:02.7]}
75... Kh6 {[%clk 0:00:04.3]} 76. Ra5 {[%clk 0:00:03.1]} 76... Nxh5 {[%clk
0:00:04.5]} 77. Ra6+ {[%clk 0:00:03.8]} 77... Kg7 {[%clk 0:00:04.9]} 78. Ra7+
{[%clk 0:00:04.7]} 78... Kg6 {[%clk 0:00:05.4]} 79. Ra6+ {[%clk 0:00:04.1]}
79... Nf6 {[%clk 0:00:06]} 80. Kf2 {[%clk 0:00:03.9]} 80... Kf5 {[%clk
0:00:06.2]} 81. Kg2 {[%clk 0:00:03.5]} 81... h5 {[%clk 0:00:05.8]} 82. Kh1
{[%clk 0:00:02.3]} 82... h4 {[%clk 0:00:06.1]} 83. Kg2 {[%clk 0:00:03.2]} 83...
h3+ {[%clk 0:00:05.5]} 84. Kh1 {[%clk 0:00:03.7]} 84... Ng4 {[%clk 0:00:05.1]}
85. Ra5+ {[%clk 0:00:03.7]} 85... Kxf4 {[%clk 0:00:05.3]} 86. Ra4+ {[%clk
0:00:04.6]} 86... Kg3 {[%clk 0:00:05.4]} 87. Ra1 {[%clk 0:00:03.5]} 87... Nf2+
{[%clk 0:00:05.9]} 88. Kg1 {[%clk 0:00:03.5]} 88... h2+ {[%clk 0:00:06.8]} 89.
Kf1 {[%clk 0:00:03.8]} 89... h1=Q+ {[%clk 0:00:07.7]} 90. Ke2 {[%clk 0:00:04.7]}
90... Qxa1 {[%clk 0:00:06.7]} 91. Kd2 {[%clk 0:00:05.6]} 91... Qa2+ {[%clk
0:00:07.4]} 92. Ke1 {[%clk 0:00:04.9]} 92... Rb1# {[%clk 0:00:08.3]} 0-1

[Event "Early-Titled-Tuesday-Blitz-August-29-2023"]
[Site "Chess.com"]
[Date "2023.08.29"]
[Round "5"]
[White "enriquebutti"]
[Black "Biregina"]
[Result "1-0"]
[WhiteElo "2254"]
[BlackElo "2442"]
[TimeControl "180+1"]
[EndTime "8:57:20 PDT"]
[Termination "enriquebutti won by checkmate"]

1. d4 {[%clk 0:03:00]} 1... d6 {[%clk 0:02:57.5]} 2. c4 {[%clk 0:02:58.4]} 2...
e5 {[%clk 0:02:53.3]} 3. Nf3 {[%clk 0:02:57.7]} 3... exd4 {[%clk 0:02:50.7]} 4.
Nxd4 {[%clk 0:02:56.4]} 4... Nf6 {[%clk 0:02:51.2]} 5. Nc3 {[%clk 0:02:55.4]}
5... Be7 {[%clk 0:02:49.8]} 6. g3 {[%clk 0:02:51.9]} 6... O-O {[%clk 0:02:49.4]}
7. Bg2 {[%clk 0:02:51.6]} 7... Nbd7 {[%clk 0:02:45.5]} 8. O-O {[%clk 0:02:49.8]}
8... Re8 {[%clk 0:02:44.2]} 9. b3 {[%clk 0:02:44]} 9... Bf8 {[%clk 0:02:43.7]}
10. e4 {[%clk 0:02:42.8]} 10... Nc5 {[%clk 0:02:43.1]} 11. Re1 {[%clk
0:02:42.1]} 11... c6 {[%clk 0:02:39.5]} 12. Bb2 {[%clk 0:02:40.9]} 12... a5
{[%clk 0:02:38.4]} 13. a3 {[%clk 0:02:32.8]} 13... Qb6 {[%clk 0:02:33.9]} 14.
Qc2 {[%clk 0:02:32.2]} 14... Bd7 {[%clk 0:02:08.7]} 15. Rab1 {[%clk 0:02:29.8]}
15... Rad8 {[%clk 0:02:04.8]} 16. Ba1 {[%clk 0:02:28.5]} 16... Ne6 {[%clk
0:02:01.3]} 17. Nde2 {[%clk 0:02:21]} 17... Ng5 {[%clk 0:01:55.9]} 18. Nf4
{[%clk 0:02:11.1]} 18... Bg4 {[%clk 0:01:45.2]} 19. h4 {[%clk 0:01:57.5]} 19...
Nf3+ {[%clk 0:01:42.9]} 20. Kf1 {[%clk 0:01:56.7]} 20... Nxe1 {[%clk 0:01:38.5]}
21. Rxe1 {[%clk 0:01:55.9]} 21... Be6 {[%clk 0:00:54.9]} 22. Na4 {[%clk
0:01:53.2]} 22... Qa6 {[%clk 0:00:50.5]} 23. Bxf6 {[%clk 0:01:51.6]} 23... gxf6
{[%clk 0:00:48.9]} 24. Nh5 {[%clk 0:01:48.4]} 24... Bg7 {[%clk 0:00:48.5]} 25.
Qc3 {[%clk 0:01:43.4]} 25... b5 {[%clk 0:00:47.5]} 26. Nb2 {[%clk 0:01:37.7]}
26... bxc4 {[%clk 0:00:39.3]} 27. Nxc4 {[%clk 0:01:31.6]} 27... Bxc4+ {[%clk
0:00:38.4]} 28. bxc4 {[%clk 0:01:31.1]} 28... Re5 {[%clk 0:00:38]} 29. Nf4
{[%clk 0:01:24.9]} 29... Rc5 {[%clk 0:00:37.2]} 30. Rc1 {[%clk 0:01:24.2]} 30...
f5 {[%clk 0:00:35.9]} 31. Qd3 {[%clk 0:01:23.3]} 31... d5 {[%clk 0:00:24.3]} 32.
exd5 {[%clk 0:01:18.8]} 32... cxd5 {[%clk 0:00:23.5]} 33. Nxd5 {[%clk
0:01:14.9]} 33... Kh8 {[%clk 0:00:23.4]} 34. Bf3 {[%clk 0:01:11.1]} 34... Rdc8
{[%clk 0:00:20.4]} 35. Be2 {[%clk 0:01:09.1]} 35... Qe6 {[%clk 0:00:19]} 36. Nf4
{[%clk 0:01:05.2]} 36... Qe5 {[%clk 0:00:13.8]} 37. Qd7 {[%clk 0:01:00.9]} 37...
R5c7 {[%clk 0:00:12.3]} 38. Qd5 {[%clk 0:00:59.2]} 38... Qxd5 {[%clk 0:00:09.9]}
39. Nxd5 {[%clk 0:00:58.8]} 39... Rc5 {[%clk 0:00:10.3]} 40. Rd1 {[%clk
0:00:54]} 40... Bb2 {[%clk 0:00:05.8]} 41. a4 {[%clk 0:00:53]} 41... Kg7 {[%clk
0:00:05.6]} 42. Ne3 {[%clk 0:00:50.9]} 42... Bf6 {[%clk 0:00:04]} 43. f4 {[%clk
0:00:49.8]} 43... Be7 {[%clk 0:00:02.9]} 44. Bd3 {[%clk 0:00:49.3]} 44... Kf8
{[%clk 0:00:03.3]} 45. Nxf5 {[%clk 0:00:48.8]} 45... Rd8 {[%clk 0:00:03]} 46.
Ke2 {[%clk 0:00:47.9]} 46... Rc6 {[%clk 0:00:02.2]} 47. Ne3 {[%clk 0:00:46.8]}
47... Rb6 {[%clk 0:00:02]} 48. Nd5 {[%clk 0:00:46.3]} 48... Rb2+ {[%clk
0:00:02.5]} 49. Kf3 {[%clk 0:00:45.3]} 49... Bc5 {[%clk 0:00:02.3]} 50. Kg4
{[%clk 0:00:44]} 50... Rd6 {[%clk 0:00:02.1]} 51. Bxh7 {[%clk 0:00:42.4]} 51...
Rb3 {[%clk 0:00:02.5]} 52. Bd3 {[%clk 0:00:40.2]} 52... Bf2 {[%clk 0:00:02.2]}
53. h5 {[%clk 0:00:38.4]} 53... Rh6 {[%clk 0:00:02.1]} 54. Rf1 {[%clk
0:00:32.8]} 54... Bd4 {[%clk 0:00:01.1]} 55. Rf3 {[%clk 0:00:32]} 55... Rh8
{[%clk 0:00:02]} 56. f5 {[%clk 0:00:30]} 56... Rg8+ {[%clk 0:00:02.9]} 57. Kf4
{[%clk 0:00:29.6]} 57... Bc5 {[%clk 0:00:03.3]} 58. g4 {[%clk 0:00:27.8]} 58...
Bd6+ {[%clk 0:00:03.4]} 59. Ke4 {[%clk 0:00:27.6]} 59... Kg7 {[%clk 0:00:04]}
60. g5 {[%clk 0:00:26.5]} 60... Re8+ {[%clk 0:00:04.9]} 61. Kd4 {[%clk
0:00:25.7]} 61... Be5+ {[%clk 0:00:05.1]} 62. Kc5 {[%clk 0:00:25.5]} 62... Rc8+
{[%clk 0:00:05.5]} 63. Nc7 {[%clk 0:00:24.1]} 63... Bxc7 {[%clk 0:00:05.9]} 64.
Kd5 {[%clk 0:00:25]} 64... Rd8+ {[%clk 0:00:05.4]} 65. Ke4 {[%clk 0:00:24.5]}
65... Re8+ {[%clk 0:00:04.4]} 66. Kd5 {[%clk 0:00:24.2]} 66... Rb6 {[%clk
0:00:04.3]} 67. c5 {[%clk 0:00:23.5]} 67... Rb4 {[%clk 0:00:03.5]} 68. f6+
{[%clk 0:00:22.3]} 68... Kh8 {[%clk 0:00:02.9]} 69. g6 {[%clk 0:00:22.1]} 69...
Be5 {[%clk 0:00:02.7]} 70. gxf7 {[%clk 0:00:20.9]} 70... Rf8 {[%clk 0:00:02.3]}
71. Kxe5 {[%clk 0:00:20.6]} 71... Rxf7 {[%clk 0:00:02.7]} 72. Bg6 {[%clk
0:00:19.8]} 72... Rf8 {[%clk 0:00:02.8]} 73. f7 {[%clk 0:00:19.7]} 73... Rxa4
{[%clk 0:00:02.6]} 74. Ke6 {[%clk 0:00:19]} 74... Kg7 {[%clk 0:00:01.1]} 75. Rd3
{[%clk 0:00:17.4]} 75... Rh4 {[%clk 0:00:02]} 76. Ke7 {[%clk 0:00:16.5]} 76...
Rh2 {[%clk 0:00:01.8]} 77. c6 {[%clk 0:00:15.1]} 77... Re2+ {[%clk 0:00:02.3]}
78. Kd6 {[%clk 0:00:14.7]} 78... Rd8+ {[%clk 0:00:02]} 79. Kc5 {[%clk
0:00:13.3]} 79... Rc2+ {[%clk 0:00:02.4]} 80. Kb6 {[%clk 0:00:12.7]} 80... Rb8+
{[%clk 0:00:02.8]} 81. Ka7 {[%clk 0:00:12.3]} 81... Rc8 {[%clk 0:00:03.2]} 82.
Re3 {[%clk 0:00:11.1]} 82... R2xc6 {[%clk 0:00:03.2]} 83. Re8 {[%clk 0:00:10.5]}
83... R6c7+ {[%clk 0:00:03]} 84. Kb6 {[%clk 0:00:10.2]} 84... a4 {[%clk
0:00:03.2]} 85. f8=Q# {[%clk 0:00:08.1]} 1-0

[Event "Early-Titled-Tuesday-Blitz-August-29-2023"]
[Site "Chess.com"]
[Date "2023.08.29"]
[Round "5"]
[White "jcibarra"]
[Black "Sina_Movahed"]
[Result "1/2-1/2"]
[WhiteElo "2881"]
[BlackElo "2975"]
[TimeControl "180+1"]
[EndTime "8:57:34 PDT"]
[Termination "Game drawn by stalemate"]

1. e4 {[%clk 0:03:00.9]} 1... c5 {[%clk 0:02:47.9]} 2. Nf3 {[%clk 0:03:01]} 2...
d6 {[%clk 0:02:48.4]} 3. c3 {[%clk 0:03:01.1]} 3... Nf6 {[%clk 0:02:48.8]} 4. h3
{[%clk 0:03:01.8]} 4... g6 {[%clk 0:02:48.6]} 5. Bd3 {[%clk 0:03:02.5]} 5... Bg7
{[%clk 0:02:49.2]} 6. Bc2 {[%clk 0:03:03.2]} 6... O-O {[%clk 0:02:49.9]} 7. O-O
{[%clk 0:03:03.8]} 7... e5 {[%clk 0:02:50]} 8. d4 {[%clk 0:03:04.2]} 8... exd4
{[%clk 0:02:50.9]} 9. cxd4 {[%clk 0:03:05]} 9... cxd4 {[%clk 0:02:51.8]} 10.
Nxd4 {[%clk 0:03:05.6]} 10... Nc6 {[%clk 0:02:52.4]} 11. Nc3 {[%clk 0:03:06.2]}
11... d5 {[%clk 0:02:52.8]} 12. Nxc6 {[%clk 0:03:03.9]} 12... bxc6 {[%clk
0:02:52.3]} 13. Bg5 {[%clk 0:03:04.7]} 13... h6 {[%clk 0:02:47]} 14. Be3 {[%clk
0:03:04.7]} 14... Re8 {[%clk 0:02:44.9]} 15. Ba4 {[%clk 0:02:54]} 15... Bd7
{[%clk 0:02:39]} 16. exd5 {[%clk 0:02:51.4]} 16... Nxd5 {[%clk 0:02:39.9]} 17.
Nxd5 {[%clk 0:02:48]} 17... cxd5 {[%clk 0:02:40.8]} 18. Bxd7 {[%clk 0:02:43.5]}
18... Qxd7 {[%clk 0:02:41.7]} 19. Qd2 {[%clk 0:02:43.7]} 19... Kh7 {[%clk
0:02:30.6]} 20. Rfd1 {[%clk 0:02:42.9]} 20... Rad8 {[%clk 0:02:30.4]} 21. Bd4
{[%clk 0:02:38.4]} 21... Re4 {[%clk 0:02:28.3]} 22. Bxg7 {[%clk 0:02:36.6]}
22... Kxg7 {[%clk 0:02:29.2]} 23. Rac1 {[%clk 0:02:35.1]} 23... d4 {[%clk
0:02:28.9]} 24. Qd3 {[%clk 0:02:30.8]} 24... Re6 {[%clk 0:02:26.2]} 25. Rc4
{[%clk 0:02:22.8]} 25... Rd6 {[%clk 0:02:26]} 26. a4 {[%clk 0:02:12.1]} 26... a5
{[%clk 0:02:19.1]} 27. b3 {[%clk 0:02:07.2]} 27... h5 {[%clk 0:02:18.2]} 28.
Rdc1 {[%clk 0:02:01.6]} 28... Rd5 {[%clk 0:02:00.5]} 29. Rc5 {[%clk 0:01:48.4]}
29... Qb7 {[%clk 0:01:58.6]} 30. Rc7 {[%clk 0:01:31.9]} 30... Qb4 {[%clk
0:01:50.4]} 31. R7c4 {[%clk 0:01:31.6]} 31... Qb8 {[%clk 0:01:47.9]} 32. Rc5
{[%clk 0:01:28.7]} 32... Qe5 {[%clk 0:01:47.2]} 33. Rxd5 {[%clk 0:01:23]} 33...
Rxd5 {[%clk 0:01:47.1]} 34. Rd1 {[%clk 0:01:23.1]} 34... h4 {[%clk 0:01:46.2]}
35. Qc4 {[%clk 0:01:18.2]} 35... Qd6 {[%clk 0:01:43.9]} 36. Rd3 {[%clk
0:01:12.2]} 36... f6 {[%clk 0:01:43.4]} 37. Qc1 {[%clk 0:00:57.7]} 37... g5
{[%clk 0:01:38.6]} 38. Qd2 {[%clk 0:00:56.9]} 38... Qc5 {[%clk 0:01:33.6]} 39.
Kh2 {[%clk 0:00:53.6]} 39... Qc7+ {[%clk 0:01:33.3]} 40. Kg1 {[%clk 0:00:52.5]}
40... Qe5 {[%clk 0:01:33.9]} 41. b4 {[%clk 0:00:43.9]} 41... axb4 {[%clk
0:01:30.5]} 42. Qxb4 {[%clk 0:00:44.8]} 42... Rc5 {[%clk 0:01:27.8]} 43. Rd1
{[%clk 0:00:38.4]} 43... d3 {[%clk 0:01:18.9]} 44. Qd2 {[%clk 0:00:36.6]} 44...
Rd5 {[%clk 0:01:16.8]} 45. a5 {[%clk 0:00:35.6]} 45... Qd6 {[%clk 0:01:07.8]}
46. Qa2 {[%clk 0:00:35.4]} 46... d2 {[%clk 0:01:02.8]} 47. a6 {[%clk 0:00:34.7]}
47... Re5 {[%clk 0:01:03.2]} 48. Qxd2 {[%clk 0:00:29.3]} 48... Qxa6 {[%clk
0:00:59.6]} 49. Qd7+ {[%clk 0:00:28.9]} 49... Kg6 {[%clk 0:00:59.7]} 50. Qd8
{[%clk 0:00:28.8]} 50... Qe6 {[%clk 0:00:58.6]} 51. Qd3+ {[%clk 0:00:26.4]}
51... Kh6 {[%clk 0:00:57.9]} 52. Qd2 {[%clk 0:00:24.2]} 52... Re4 {[%clk
0:00:57.4]} 53. Qd3 {[%clk 0:00:19.4]} 53... Qe5 {[%clk 0:00:55.2]} 54. Qd2
{[%clk 0:00:16.6]} 54... Re2 {[%clk 0:00:55.1]} 55. Qb4 {[%clk 0:00:16.6]} 55...
Kg6 {[%clk 0:00:52.8]} 56. Qb1+ {[%clk 0:00:15.6]} 56... Kh6 {[%clk 0:00:53.1]}
57. Qb4 {[%clk 0:00:15.1]} 57... Kh5 {[%clk 0:00:49.1]} 58. Qg4+ {[%clk
0:00:11.7]} 58... Kg6 {[%clk 0:00:48.8]} 59. Qb4 {[%clk 0:00:11.4]} 59... Qf5
{[%clk 0:00:46.7]} 60. Qd4 {[%clk 0:00:07.4]} 60... Qc2 {[%clk 0:00:42.8]} 61.
Qd3+ {[%clk 0:00:06.6]} 61... Qxd3 {[%clk 0:00:40.9]} 62. Rxd3 {[%clk
0:00:07.5]} 62... Re1+ {[%clk 0:00:41.5]} 63. Kh2 {[%clk 0:00:07.6]} 63... Rf1
{[%clk 0:00:42.2]} 64. f3 {[%clk 0:00:07.7]} 64... Kf5 {[%clk 0:00:39.3]} 65.
Rd4 {[%clk 0:00:07.8]} 65... Ke5 {[%clk 0:00:39.4]} 66. Re4+ {[%clk 0:00:08]}
66... Kf5 {[%clk 0:00:39.5]} 67. Rd4 {[%clk 0:00:08]} 67... Re1 {[%clk
0:00:38.6]} 68. Ra4 {[%clk 0:00:08.1]} 68... Rc1 {[%clk 0:00:36.9]} 69. Rb4
{[%clk 0:00:08.3]} 69... Rd1 {[%clk 0:00:35.5]} 70. Ra4 {[%clk 0:00:08.5]} 70...
Ke5 {[%clk 0:00:36]} 71. Re4+ {[%clk 0:00:07.9]} 71... Kd5 {[%clk 0:00:35.3]}
72. Ra4 {[%clk 0:00:08.8]} 72... Rd4 {[%clk 0:00:35]} 73. Ra6 {[%clk 0:00:08.1]}
73... Ke5 {[%clk 0:00:34.7]} 74. Kg1 {[%clk 0:00:07.3]} 74... Kf4 {[%clk
0:00:34.7]} 75. Kf2 {[%clk 0:00:02.1]} 75... Rd2+ {[%clk 0:00:34.7]} 76. Kf1
{[%clk 0:00:02.7]} 76... Kg3 {[%clk 0:00:34.8]} 77. Rxf6 {[%clk 0:00:03.4]}
77... Rf2+ {[%clk 0:00:34.7]} 78. Ke1 {[%clk 0:00:04]} 78... Rxg2 {[%clk
0:00:35.4]} 79. Rf5 {[%clk 0:00:02.4]} 79... Kxh3 {[%clk 0:00:35.2]} 80. Kf1
{[%clk 0:00:02.8]} 80... Rg3 {[%clk 0:00:32.7]} 81. Kf2 {[%clk 0:00:03.2]} 81...
Kh2 {[%clk 0:00:32.9]} 82. Rf6 {[%clk 0:00:01.7]} 82... Rg2+ {[%clk 0:00:32.6]}
83. Kf1 {[%clk 0:00:01.7]} 83... h3 {[%clk 0:00:27.9]} 84. Rf5 {[%clk
0:00:02.4]} 84... Rg3 {[%clk 0:00:27.3]} 85. Kf2 {[%clk 0:00:02.5]} 85... Rg2+
{[%clk 0:00:27.7]} 86. Kf1 {[%clk 0:00:03.1]} 86... Kh1 {[%clk 0:00:28.4]} 87.
Re5 {[%clk 0:00:02.9]} 87... Rg1+ {[%clk 0:00:19.7]} 88. Kf2 {[%clk 0:00:02.9]}
88... Rg2+ {[%clk 0:00:16.8]} 89. Kf1 {[%clk 0:00:03]} 89... Kh2 {[%clk
0:00:16.9]} 90. Rd5 {[%clk 0:00:03.2]} 90... Rg3 {[%clk 0:00:07.5]} 91. Kf2
{[%clk 0:00:03.8]} 91... Rg1 {[%clk 0:00:08.1]} 92. Rc5 {[%clk 0:00:03.3]} 92...
Rg2+ {[%clk 0:00:08.3]} 93. Kf1 {[%clk 0:00:03.6]} 93... Kg3 {[%clk 0:00:08.9]}
94. Rxg5+ {[%clk 0:00:03]} 94... Kxf3 {[%clk 0:00:09.8]} 95. Rxg2 {[%clk
0:00:02.6]} 95... hxg2+ {[%clk 0:00:10.4]} 96. Kg1 {[%clk 0:00:03.3]} 96... Kg3
{[%clk 0:00:10.5]} 1/2-1/2